Cogmind - Beta 15 @@@ ROGUE MODE // 2025.06.20 @ 22:39:37 Player: Storm Mk9 Result: Self-destructed Performance ------------- Evolutions (2) 1000 Regions Visited (3) 600 Robots Destroyed (25) 125 Value Destroyed (916) 916 Prototype IDs (0) 0 Alien Tech Used (0) 0 Bonus (-14) -14 TOTAL SCORE: 2627 Bonus ------- Friendly Fire -14 Cogmind --------- Core Integrity 370/550 Matter 300/300 Energy 160/160 System Corruption 0% Temperature Cool (0) Movement Treading (160) Location -8/Materials Parts ------- > --- POWER (1) -------- Light Nuclear Core > --- PROPULSION (2) --- Light Treads Light Treads > --- UTILITY (5) ------ Improved Heat Sink Improved Heat Sink Improved Heat Sink Small Storage Unit Advanced Visual Processing Unit > --- WEAPON (3) ------- Medium Laser Light Assault Rifle Gauss Rifle > --- INVENTORY (8) ---- Improved Heat Sink Heavy EM Pulse Gun Shock Rifle Beam Rifle Field Laser Peak State ------------ > --- POWER ------------ Light Nuclear Core > --- PROPULSION ------- Light Treads Light Treads > --- UTILITY ---------- Improved Heat Sink Improved Heat Sink Improved Heat Sink Small Storage Unit Advanced Visual Processing Unit > --- WEAPON ----------- Medium Laser Light Assault Rifle Gauss Rifle > --- INVENTORY -------- Heavy EM Pulse Gun Shock Rifle Beam Rifle Field Laser [Rating: 25] Favorites ----------- Power Light Ion Engine Engine Light Ion Engine Power Core Light Nuclear Core Propulsion Light Treads Treads Light Treads Wheel Subdweller Monowheel Utility Small Storage Unit Device Improved Heat Sink Storage Small Storage Unit Processor Advanced Visual Processing Unit Protection Scrap Shield Weapon Medium Laser Energy Gun Medium Laser Ballistic Gun Light Assault Rifle Build | -11 -10 -10 -8 ------- Run | Yrd Mat Sub Mat Slots Evolved 4 | . . . 4 Power . | . . . . Propulsion . | . . . . Utility 3 | . . . 3 Weapon 1 | . . . 1 Parts Attached 29 | 7 . 8 14 Power 5 | 1 . 1 3 Engine 4 | 1 . 1 2 Core 1 | . . . 1 Reactor . | . . . . Propulsion 5 | 2 . 1 2 Treads 4 | 2 . . 2 Leg . | . . . . Wheel 1 | . . 1 . Hover . | . . . . Flight . | . . . . Utility 10 | 2 . 3 5 Device 5 | 1 . 1 3 Storage 1 | 1 . . . Processor 1 | . . . 1 Hackware . | . . . . Protection 3 | . . 2 1 Artifact . | . . . . Weapon 9 | 2 . 3 4 Energy Gun 6 | 2 . 3 1 Energy Cannon . | . . . . Ballistic Gun 3 | . . . 3 Ballistic Cannon . | . . . . Launcher . | . . . . Special Weapon . | . . . . Impact Weapon . | . . . . Slashing Weapon . | . . . . Piercing Weapon . | . . . . Special Melee Weapon . | . . . . Unidentified Prototypes . | . . . . Parts Lost 17 | . . 8 9 Power 3 | . . 1 2 Propulsion 3 | . . 1 2 Utility 5 | . . 3 2 Weapon 6 | . . 3 3 Highest Loss Streak 6 | . . 4 6 To Critical Strikes . | . . . . Average Backups 2 | 1 2 1 3 Power . | . 1 . . Propulsion . | . . . . Utility . | . . . . Weapon 1 | . 1 . 2 Tool/Special . | . . . . Unused Backups 4 | . . . 4 Power . | . . . . Propulsion . | . . . . Utility . | . . . . Weapon 4 | . . . 4 Tool/Special . | . . . . Average Slot Usage (%) 84 | . 100 86 78 Engine 11 | . 14 13 7 Treads 18 | . 28 23 8 Wheel 2 | . . 3 2 Device 8 | . 14 3 13 Storage 7 | . 14 4 8 Processor 1 | . . . 5 Protection 7 | . . 8 7 Energy Gun 22 | . 28 27 15 Ballistic Gun 3 | . . . 8 Peak Build Rating 25 | 7 7 12 25 Average Rating 11 | 4 7 9 16 On Entrance 6 | . 7 7 12 Naked Turns . | . . . . Heaviest Build 35 | 13 13 26 35 Greatest Support 40 | 40 40 40 40 Greatest Overweight (x) 4 | . . 1 4 Average Overweight (x) . | . . . . Largest Inventory Capacity 8 | 8 8 8 8 Average Capacity 6 | 7 8 6 7 Most Carried 8 | 5 2 5 8 Average Carried 2 | 1 2 2 4 Final Capacity 8 | 8 8 5 8 Final Carried 5 | 2 2 5 5 Class Distribution -------------------- 69% | Mutant 22% | Scavenger-Tank 4% | Subdweller-Tank Dominant Class ---------------- Mutant | -10/Materials Mutant | -10/Subcaves Scavenger-Tank | -8/Materials Resources | -11 -10 -10 -8 ----------- Run | Yrd Mat Sub Mat Matter Collected 527 | 146 43 131 207 Remotely . | . . . . Salvage Created 1086 | 105 20 329 632 Parts 60 | 5 4 19 32 Haulers Intercepted . | . . . . Recyclers Shooed . | . . . . Parts Field Recycled . | . . . . Retrieved Matter . | . . . . Parts Self-Destructed 6 | . . 6 . Prevented . | . . . . Kills | -11 -10 -10 -8 ------- Run | Yrd Mat Sub Mat Combat Hostiles Destroyed 22 | . . 7 15 Guns 21 | . . 7 14 Classes Destroyed 9 | 2 1 1 5 Tunneler 1 | 1 . . . Recycler 1 | 1 . . . Operator 1 | . 1 . . Swarmer 3 | . . . 3 Grunt 8 | . . . 8 Brawler 1 | . . . 1 Sentry 1 | . . . 1 Hunter 2 | . . . 2 Subdweller 7 | . . 7 . Best Kill Streak 9 | 1 1 2 9 Combat Bots Only 9 | . . 2 9 Max Kills in Single Turn 1 | 1 1 1 1 Gunslinging . | . . . . Exploded . | . . . . Melee . | . . . . Uniques/NPCs Destroyed . | . . . . Combat | -11 -10 -10 -8 -------- Run | Yrd Mat Sub Mat Hostile Shots Fired 172 | . . 45 127 Missed 49 | . . 15 34 Hits 123 | . . 30 93 Projectile 123 | . . 30 93 Critical Strikes 5 | . . 1 4 Damage Taken 2229 | 36 8 833 1352 Core 235 | . . 55 180 Absorbed by Shields . | . . . . Core Remaining (%) 89 | 100 . 78 . Volleys Fired 87 | 8 1 37 41 Largest 3 | 2 2 2 3 Hottest 135 | 80 80 100 135 Shots Fired 185 | 16 2 66 101 Gun 185 | 16 2 66 101 Cannon . | . . . . Launcher . | . . . . Special . | . . . . Kinetic 45 | . . . 45 Thermal 93 | . . 37 56 Explosive . | . . . . Electromagnetic 47 | 16 2 29 . Robot Hit Streak 21 | 4 3 16 21 Robot Miss Streak 3 | 2 . 2 3 Penetration Max . | . . . . Secondary Targets 5 | . . 2 3 Max Gunslinging Chain 1 | . . 1 1 Shots Hit Robots 136 | 8 1 51 76 Core Hits 58 | 3 1 20 34 Critical Kills . | . . . . Critical Parts Destroyed . | . . . . Critical Strikes 6 | . . 1 5 Burn 6 | . . 1 5 Melee Attacks . | . . . . Impact . | . . . . Slashing . | . . . . Piercing . | . . . . Sneak Attacks . | . . . . Combat Hostiles . | . . . . Follow-up Attacks . | . . . . Damage Inflicted 1886 | 128 16 650 1092 Guns 1861 | 103 16 650 1092 Cannons . | . . . . Explosions 25 | 25 . . . Melee . | . . . . Ramming . | . . . . Kinetic 477 | . . . 477 Thermal 939 | 25 . 299 615 Explosive . | . . . . Electromagnetic 470 | 103 16 351 . Impact . | . . . . Slashing . | . . . . Piercing . | . . . . Highest Corruption . | . . . . Average Corruption . | . . . . Corruption Purged . | . . . . Corruption Blocked . | . . . . Overload Shots . | . . . . Overflow Damage . | . . . . Projectiles . | . . . . Explosions . | . . . . Melee . | . . . . Knockbacks . | . . . . Impact . | . . . . Kinetic . | . . . . Secondary . | . . . . Self-Inflicted Damage 37 | 37 . . . Shots 1 | 1 . . . Rammed . | . . . . Targets Rammed . | . . . . Kicked . | . . . . Crushed . | . . . . Highest Temperature 239 | 66 18 239 90 Average Temperature 51 | 33 12 127 42 Received Heat Transfer 1035 | . 6 435 594 Siege Activations . | . . . . Martial Activations . | . . . . Shielding Activations . | . . . . Robots Disrupted . | . . . . Combat Hostiles . | . . . . Robots Corrupted . | . . . . Combat Hostiles . | . . . . Parts Fried 6 | 2 1 3 . Impact Corruptions . | . . . . Robots Melted . | . . . . Combat Hostiles . | . . . . Parts Melted 1 | . . . 1 Heat Transferred 3084 | 50 . 962 2072 Parts Sabotaged . | . . . . Parts Stolen . | . . . . Parts Stripped . | . . . . Power Chain Reactions 1 | 1 . . . Alert | -11 -10 -10 -8 ------- Run | Yrd Mat Sub Mat Maximum Alert Level . | . . . . Low Security (%) 100 | 100 100 . 100 Level 1 . | . . . . Level 2 . | . . . . Level 3 . | . . . . Level 4 . | . . . . Level 5 . | . . . . High Security . | . . . . Max Security . | . . . . Peak Influence 131 | 5 12 . 131 Initial . | . . . . Average 30 | . 1 . 42 Influence Increases 448 | 10 17 . 421 Destroy 0b10 Robot/C 300 | . . . 300 Destroy 0b10 Robot/NC 15 | 10 5 . . Destroy Leader 60 | . . . 60 Trap Triggered on 0b10 10 | . . . 10 Successful Hack 17 | . 12 . 5 Select Force Hacks 30 | . . . 30 Disable Machine 15 | . . . 15 Destroy Structure 1 | . . . 1 Influence Decreases 349 | 10 17 . 322 Time Decay 283 | 10 17 . 256 Lost Part 66 | . . . 66 Squads Dispatched 5 | . 1 . 4 Investigation 3 | . . . 3 Extermination . | . . . . Reinforcement 2 | . 1 . 1 Assault . | . . . . Garrison . | . . . . Intercept . | . . . . Searches Triggered . | . . . . Construction Impeded . | . . . . Haulers Reinforced . | . . . . Active Scanning Responses . | . . . . Cargo Convoy Interrupts . | . . . . Stealth | -11 -10 -10 -8 --------- Run | Yrd Mat Sub Mat Distress Signals 6 | . . . 6 Communications Jammed . | . . . . Distress Signals . | . . . . Times Spotted 36 | . 3 8 25 Peak Tracking Total 5 | . 3 2 5 Tactical Retreats . | . . . . Traps | -11 -10 -10 -8 ------- Run | Yrd Mat Sub Mat Traps Triggered 3 | . . 2 1 Indirectly . | . . . . Trap Hack Attempts . | . . . . Triggered . | . . . . Disarmed . | . . . . Reprogrammed . | . . . . Reused 1 | . . . 1 Traps Extracted . | . . . . Installed 1 | . . . 1 Triggered 1 | . . . 1 Most Traps Carried 1 | . . 1 1 Machines | -11 -10 -10 -8 ---------- Run | Yrd Mat Sub Mat Machines Disabled 1 | . . . 1 Max in Single Turn 1 | . . . 1 Machines Repaired . | . . . . Machines Dismantled . | . . . . Machines Sabotaged . | . . . . Overloaded Fab Kills . | . . . . Hacking | -11 -10 -10 -8 --------- Run | Yrd Mat Sub Mat Machines Accessed 5 | . 1 . 4 Terminals 4 | . 1 . 3 Fabricators . | . . . . Repair Stations . | . . . . Recycling Units 1 | . . . 1 Scanalyzers . | . . . . Garrison Access . | . . . . Total Hacks 16 | . 6 . 10 Successful 6 | . 4 . 2 Failed 10 | . 2 . 8 Catastrophic 1 | . . . 1 Database Lockouts . | . . . . Manual 11 | . 3 . 8 Terminals 15 | . 6 . 9 Fabricators . | . . . . Repair Stations . | . . . . Recycling Units 1 | . . . 1 Scanalyzers . | . . . . Garrison Access . | . . . . Terminal Hacks 3 | . 3 . . Robot Analysis 2 | . 2 . . Locate Traps 1 | . 1 . . Fabricator Hacks . | . . . . Repair Station Hacks . | . . . . Recycling Unit Hacks . | . . . . Scanalyzer . | . . . . Garrison Access Hacks . | . . . . Unauthorized Hacks 3 | . 1 . 2 Terminals 2 | . 1 . 1 Botnet 2 | . 1 . 1 Fabricators . | . . . . Repair Stations . | . . . . Recycling Units 1 | . . . 1 Tunnel 1 | . . . 1 Scanalyzers . | . . . . Garrison Access . | . . . . Data Cores Recovered 1 | . 1 . . Used . | . . . . Hacking Detections 4 | . 1 . 3 Full Trace Events 3 | . . . 3 Feedback Events . | . . . . Feedback Blocked . | . . . . Robot Schematics Acquired . | . . . . Robots Built . | . . . . Authchips . | . . . . Time . | . . . . Total Robot Build Rating . | . . . . Part Schematics Acquired . | . . . . Parts Built . | . . . . Authchips . | . . . . Time . | . . . . Total Part Build Rating . | . . . . Parts Repaired . | . . . . Time . | . . . . Parts Recycled . | . . . . Recycled Matter . | . . . . Retrieved Matter . | . . . . Retrieved Components . | . . . . Parts Scanalyzed . | . . . . Part Schematics Acquired . | . . . . Parts Damaged . | . . . . Bothacking | -11 -10 -10 -8 ------------ Run | Yrd Mat Sub Mat Used RIF Installer . | . . . . Robots Hacked . | . . . . Non-combat . | . . . . Combat . | . . . . Robot Hacks Applied . | . . . . Relay Couplers Released . | . . . . Fabnet Peak Effective % . | . . . . Robots Rewired . | . . . . Allies Hacked . | . . . . Hacks Repelled . | . . . . Allies | -11 -10 -10 -8 -------- Run | Yrd Mat Sub Mat Total Allies . | . . . . Largest Group . | . . . . Highest-Rated Group . | . . . . Highest-Rated Ally . | . . . . Total Orders . | . . . . Ally Attacks . | . . . . Total Damage . | . . . . Kills . | . . . . Allies Corrupted . | . . . . Allies Melted . | . . . . Intel | -11 -10 -10 -8 ------- Run | Yrd Mat Sub Mat Active Infowar (turns) 860 | 17 158 259 426 Optics 426 | . . . 426 Seismic 434 | 17 158 259 . Robot Analysis Total 2 | . 2 . . Derelict Logs Recovered 1 | . . 1 . Drone Launches . | . . . . Drone Recoveries . | . . . . Exploration | -11 -10 -10 -8 ------------- Run | Yrd Mat Sub Mat Turns Passed 2055 | 122 158 1056 719 Spaces Moved 889 | 52 86 508 243 Core 23 | 6 . . 17 Treads 866 | 46 86 508 226 Legs . | . . . . Wheels . | . . . . Hover . | . . . . Flight . | . . . . Fastest Speed 50 | 50 160 160 150 Average Speed 188 | 147 160 179 225 Slowest Speed 250 | 160 160 240 250 Overloaded Moves . | . . . . Propulsion Burnouts . | . . . . Robots Hopped . | . . . . Potential Cave-ins . | . . . . Cave-ins Triggered . | . . . . Exploration Rate (%) 24 | 4 25 36 31 Regions Visited 3 Branch Regions 1 Pre-discovered Areas 2 | . . 1 1 Known Exits Taken . | . . . . Unknown Exits Taken 3 | 1 1 1 . Scrap Searched . | . . . . Spaces Dug . | . . . . Terrain Destroyed 4 | 3 . . 1 Melee . | . . . . Projectile 1 | . . . 1 AOE 3 | 3 . . . Terrain Rammed . | . . . . Walls Destroyed . | . . . . Machines Disabled . | . . . . Actions | -11 -10 -10 -8 --------- Run | Yrd Mat Sub Mat Total 1107 | 82 105 585 335 Wait 52 | 7 19 14 12 Move 886 | 51 85 507 243 Hop . | . . . . Pick Up 39 | 9 . 12 18 Fast Attach . | . . . . Attach 29 | 7 . 8 14 Detach 1 | . . 1 . Swap 1 | . . . 1 Drop 7 | . . 2 5 Fire 87 | 8 1 37 41 Melee . | . . . . Ram . | . . . . Kick . | . . . . Crush . | . . . . Escape Stasis . | . . . . Rewire . | . . . . Trap 1 | . . . 1 Miscellaneous 4 | . . 4 . Route ------- -11/Scrapyard -10/Materials (discovered 2 exits: [*Min] / [*Sub]) -10/Subcaves (discovered 2 exits: *Mat / [*Scr]) -8/Materials History --------- Turn | Location | Event 4 | -11/Scrapyard | Discovered new exit (range 15) 123 | -11/Scrapyard | Entered Materials 124 | -10/Materials | Met a group of wandering Federalists 173 | -10/Materials | Discovered new exit (range 8) 265 | -10/Materials | Discovered new exit (range 10) 281 | -10/Materials | Entered Subcaves 282 | -10/Subcaves | Continued accompanying wandering Federalists (3) 282 | -10/Subcaves | Approached by a straggling Scientist 317 | -10/Subcaves | Build established: Mutant 450 | -10/Subcaves | Ambushed by angry Subdweller bent on revenge 581 | -10/Subcaves | Lost 4 parts (1p2u1w) 1179 | -10/Subcaves | Shifting Twisted Machinery released Sub. Power Source 1209 | -10/Subcaves | Discovered new exit (range 8) 1211 | -10/Subcaves | Shifting Twisted Machinery released Piercing Trap 1337 | -10/Subcaves | Entered Materials 1337 | -8/Materials | Evolved 4 slots: Utility x3, Weapon x1 1524 | -8/Materials | Destroyed 9 combat bots 1533 | -8/Materials | Lost 6 parts (1p2n1u2w) 1841 | -8/Materials | Build established: Scavenger-Tank 2038 | -8/Materials | Lost 3 parts (1p1u1w) 2056 | -8/Materials | Self-destructed Last Messages --------------- 02021_ M-13 Machinist destroyed. 02023_ G-47 Trooper destroyed. 02023_ Switching to secondary target: G-47 Trooper. 02027_ G-47 Trooper destroyed. 02031_ Connecting with Recycling Unit... >>Force(Tunnel) DISCOVERED[-9/Mines] 02031_ ALERT: Suspicious activity at Recycling Unit M001. Dispatching Investigation squad. 02031_ Acquired 75 matter. 02042_ Acquired Imp. Heat Sink. 02055_ Connecting with Terminal... >>Trojan(Botnet) Trojan loaded successfully. Testing... Terminal linked with 0 systems. Awaiting botnet instructions. 02055_ ALERT: Suspicious activity at Terminal M005. Dispatching Investigation squad. Map ----- +----------------------------------------------------+ | | | | | | | | | | | | | | | ?????????????????????????????????????????????? | | ?????????????????????????????????????????????? | | ?????????????????????????????????????????????? | | ?????????????????????????????????????????????? | | ?????????????????????????????????????????????? | | ?????????????????????????????????????????????? | | ??????????????#########??????????????????????? | | ??????????????? != #??????????????????????? | | ???????????????# = #??????????????????????? | | ???????????????# #??????????????????????? | | ???????????????# #??????????????????????? | | ???????????????# "T" #??????????????????????? | | ???????######??# #??????????????????????? | | ???????# #######+#########+## !#??????? | | ??????## % !#??????? | | ??????#" %= !#???????? | | ??????#T """" !*%""" ########+#####???????? | | ??????#" """" %="Y" # #???????????????? | | ??????## """"w =%*% /@T #???????????????? | | ???????# !!!!= #^ #???????????????? | | ???????# ! =% # #???????????????? | | ???????# ########### # #???????????????? | | ???????# #?????????# # #???????????????? | | ???????# #?????????# # #???????????????? | | ???????# #??????? ## # #???????????????? | | ???????# #??????? ## + #???????????????? | | ???????# #?????? ]## ######???????????????? | | ???????# ##??""" ## #????????????????????? | | ??????## #""""" ## #????????????????????? | | ??????## #""""" ## ????????????????????? | | ??????## #""""" ## ????????????????????? | | ??????# #""""" ## #????????????????????? | | ??????# ##""""" ## #????????????????????? | | ??????## ##""""" ## #????????????????????? | | ???????# ##? ??# #????????????????????? | | ???????# #####+##### #????????????????????? | | ######## ######???????????????? | | #???????????????? | | #???????????????? | | """"""" """"""" #???????????????? | | """"""" """"""" #???????????????? | | """"""" """"""" ######## #???????????????? | | """"""" """"""" #? #? #???????????????? | +----------------------------------------------------+ Best States ------------- Heat Dissipation 73 Energy Generation 14 Energy Capacity 265 Matter Stores 300 Matter Capacity 300 Sight Range 20 Terrain Scan Density 10 Armor Coverage 800 Evasion (%) 40 Recoil Reduction 2 Item Schematics ----------------- None Robot Schematics ------------------ None Fabricated ------------ Nothing Repaired ---------- Nothing Alien Tech Used ----------------- None Achievements -------------- None Challenges ------------ None Game ------ Seed FactoryConcussiveStabilizer Manual? 0 Play Time 00:15:42 Cumulative 77.9 hours Start 2025.06.20 @ 22:24:47 End 2025.06.20 @ 22:39:37 Sessions 1 Manual Loads 0 Difficulty Rogue Special Mode None Game No. 75 Rogue 56 Adventurer 0 Explorer 19 Win Type - Total 0 Types 0/0/0/0/0/0/0/0/0/0 Lore% 54 Gallery% 44 Achievement% 68 Wizard Run 0 Options --------- Layout 1 ASCII 0 Keyboard 0 Movement Mouse Keybinds 0 Fullscreen 2 Font 16/SmallcapsGlow Map View 50x40 Zoom Use 0% Tactical HUD 1 Map Filters NONE Filters NONE Steam SD RUN: 30a23190-ca06-46c0-8d08-c3a0fa18cc34